Cogmind - Beta 16 @@@ ROGUE MODE // 2025.12.11 @ 09:58:14 Player: FR-13D Result: Destroyed by S-43 Plague with Heavy Machine Gun Performance ------------- Evolutions (7) 3500 Regions Visited (17) 3400 Robots Destroyed (197) 985 Value Destroyed (8717) 8717 Prototype IDs (16) 320 Alien Tech Used (0) 0 Bonus (4762) 4762 TOTAL SCORE: 21684 Bonus ------- High Alert Combat Kills 1665 Follower Combat Kills 886 Entered Garrisons 600 Used RIF Installer 1500 Met Data Miner 300 Friendly Fire -189 Cogmind --------- Core Integrity 0/1300 Matter 29/300 Energy 60/100 System Corruption 0% Temperature Cool (0) Movement Treading (145) Location -3/Research Parts ------- > --- POWER (2) -------- (None) > --- PROPULSION (6) --- Advanced Heavy Treads Advanced Heavy Treads > --- UTILITY (9) ------ (None) > --- WEAPON (4) ------- (None) > --- INVENTORY (5) ---- Matter Compressor (250) Advanced Sensor Array Advanced Launcher Guidance Computer Advanced Weapon Cycler Improved Plasma Cutter Peak State ------------ > --- POWER ------------ Reinforced Fission Core Reinforced Fission Core > --- PROPULSION ------- Improved Treads Improved Treads Improved Treads Armored Medium Treads Armored Huge Wheel > --- UTILITY ---------- Advanced Heat Sink Advanced Heat Sink High-capacity Storage Unit Advanced Sensor Array Advanced Signal Interpreter Advanced Launcher Guidance Computer Improved Medium Armor Plating Improved Medium Armor Plating Hacking Suite > --- WEAPON ----------- Enhanced Nova Cannon KE Penetrator Antimatter Cannon Long-range Missile Launcher > --- INVENTORY -------- Reinforced Fission Core Armored Wheel Armored Wheel Advanced Heat Sink Improved Coolant Injector Matter Compressor Advanced Launcher Guidance Computer Advanced Weapon Cycler Makeshift Transmission Jammer Improved Medium Armor Plating Hacking Suite Wave Gun Wave Gun Quantum Rifle Enhanced Nova Cannon Long-range Missile Launcher Smartbomb Launcher Improved Plasma Cutter Shock Maul [Rating: 109] Favorites ----------- Power Reinforced Deuterium Engine Engine Reinforced Deuterium Engine Power Core Reinforced Fission Core Reactor Light Antimatter Reactor Propulsion Improved Medium Treads Treads Improved Medium Treads Wheel Armored Huge Wheel Flight Unit Impulse Thruster Utility Large Storage Unit Device Improved Cooling System Storage Large Storage Unit Processor Advanced Targeting Computer Hackware Hacking Suite Protection Improved Medium Armor Plating Weapon Antimatter Cannon Energy Gun Wave Gun Energy Cannon Heavy Phase Cannon Ballistic Gun KE Penetrator Ballistic Cannon Antimatter Cannon Launcher Long-range Missile Launcher Special Weapon Mining Laser Impact Weapon Shock Maul Slashing Weapon Blade Saw Build | -11 -10 -9 -8 -8 -8 -7 -6 -6 -6 -6 -5 -5 -4 -4 -4 -4 -3 ------- Run | Yrd Mat Mat Mat Gar Mat Fac Fac Low Low Dat Pro Fac Fac Gar Fac Gar Res Slots Evolved 14 | . . 2 2 . . 2 2 . . . . 2 2 . . . 2 Power 1 | . . . . . . . 1 . . . . . . . . . . Propulsion 4 | . . . 1 . . 1 . . . . . 1 1 . . . . Utility 7 | . . 2 1 . . 1 . . . . . 1 1 . . . 1 Weapon 2 | . . . . . . . 1 . . . . . . . . . 1 Parts Attached 158 | 9 6 10 11 28 4 3 3 7 2 . 5 27 2 18 2 13 8 Power 15 | 1 1 . 1 3 . . 1 1 1 . 1 2 . 2 . 1 . Engine 8 | 1 1 . 1 3 . . 1 1 . . . . . . . . . Core 6 | . . . . . . . . . . . 1 2 . 2 . 1 . Reactor 1 | . . . . . . . . . 1 . . . . . . . . Propulsion 46 | 4 2 4 3 8 2 . . . . . 1 7 . 4 1 5 5 Treads 31 | . 2 3 3 7 1 . . . . . . 4 . 4 . 5 2 Leg . | . . . . . . . . . . . . . . . . . . Wheel 14 | 4 . 1 . 1 1 . . . . . 1 3 . . 1 . 2 Hover . | . . . . . . . . . . . . . . . . . . Flight 1 | . . . . . . . . . . . . . . . . . 1 Utility 60 | 2 1 4 3 11 2 2 1 3 . . 2 12 2 7 1 6 1 Device 28 | 1 . 1 1 6 1 2 . 1 . . 1 5 1 3 . 4 1 Storage 5 | 1 1 . . . . . . . . . . 3 . . . . . Processor 6 | . . 1 1 . . . . . . . 1 1 1 1 . . . Hackware 1 | . . . . . . . . . . . . 1 . . . . . Protection 20 | . . 2 1 5 1 . 1 2 . . . 2 . 3 1 2 . Artifact . | . . . . . . . . . . . . . . . . . . Weapon 37 | 2 2 2 4 6 . 1 1 3 1 . 1 6 . 5 . 1 2 Energy Gun 14 | 1 1 2 4 2 . . . . . . . 1 . 2 . . 1 Energy Cannon 5 | . . . . 1 . . . 1 . . . 1 . 1 . . 1 Ballistic Gun 6 | 1 . . . . . . 1 . . . 1 2 . . . 1 . Ballistic Cannon 4 | . . . . 1 . . . 1 . . . 2 . . . . . Launcher 5 | . . . . 1 . 1 . . 1 . . . . 2 . . . Special Weapon 1 | . 1 . . . . . . . . . . . . . . . . Impact Weapon 1 | . . . . . . . . 1 . . . . . . . . . Slashing Weapon 1 | . . . . 1 . . . . . . . . . . . . . Piercing Weapon . | . . . . . . . . . . . . . . . . . . Special Melee Weapon . | . . . . . . . . . . . . . . . . . . Unidentified Prototypes 3 | . . . 1 . . . . 2 . . . . . . . . . Corrupted Parts 1 | . . . . 1 . . . . . . . . . . . . . System Corruption 1 | . . . . 1 . . . . . . . . . . . . . Parts Lost 54 | . . . 3 8 . . 1 2 1 . 2 7 . 10 . . 20 Power 5 | . . . 1 2 . . . . . . . 1 . 1 . . . Propulsion 20 | . . . 1 1 . . . . . . 1 6 . 3 . . 8 Utility 15 | . . . . 3 . . 1 1 . . 1 . . 5 . . 4 Weapon 14 | . . . 1 2 . . . 1 1 . . . . 1 . . 8 Highest Loss Streak 18 | . . . 3 7 . . 1 2 1 . 1 2 . 6 . . 18 To Critical Strikes 2 | . . . . . . . . . . . . . . 2 . . . Average Backups 15 | 4 8 13 13 14 14 13 12 13 13 14 13 18 17 18 19 19 16 Power . | . . . . . . . . . 1 1 1 . 1 1 1 1 . Propulsion 2 | 2 5 6 6 4 3 2 2 2 3 3 3 1 . . . . 1 Utility 6 | . . 2 3 5 6 7 6 5 5 5 3 8 8 8 9 9 7 Weapon 4 | 1 1 2 2 2 3 3 3 4 3 4 4 7 7 7 8 8 5 Tool/Special . | . . . . . . . . . . . . . . . . . . Unused Backups 41 | 4 . 4 . 2 3 . . . 2 . 1 13 . 4 . 2 6 Power 5 | . . . . 2 . . . . . . . 1 . 1 . 1 . Propulsion 6 | 1 . 2 . . 3 . . . . . . . . . . . . Utility 13 | . . 2 . . . . . . . . 1 4 . 1 . 1 4 Weapon 13 | 3 . . . . . . . . 2 . . 5 . 2 . . 1 Tool/Special 4 | . . . . . . . . . . . . 3 . . . . 1 Average Slot Usage (%) 93 | . 100 95 94 98 92 90 84 95 100 82 99 92 88 84 87 92 81 Engine 6 | . 14 11 9 8 9 7 6 13 11 6 1 3 5 3 . . . Core 2 | . . . . . . . . . . . 4 4 5 6 10 9 7 Reactor 1 | . . . . . . . . . 1 6 6 1 . . . . . Treads 20 | . 12 11 19 23 19 22 26 26 26 26 24 14 10 21 21 21 15 Wheel 4 | . 15 10 7 3 6 6 . . . . . 6 10 3 5 5 3 Device 17 | . 14 19 17 19 18 22 20 20 20 20 24 17 14 11 7 6 12 Storage 6 | . 14 11 9 9 9 7 6 6 6 6 6 5 5 5 5 5 3 Processor 4 | . . 6 9 . . . . . . . . 9 10 6 10 10 7 Hackware 1 | . . . . . . . . . . . . 4 5 5 5 5 3 Protection 7 | . . 2 5 15 11 7 6 8 13 13 6 1 5 5 7 11 7 Energy Gun 5 | . 14 15 17 6 9 7 6 3 . . . 1 . 4 3 7 . Energy Cannon 4 | . . . . 6 9 6 6 6 6 . 6 5 5 . . . 2 Ballistic Gun 3 | . 13 5 . . . . 4 6 6 . 6 5 5 3 . 1 3 Ballistic Cannon 2 | . . . . . . . . 2 . . 5 3 5 3 5 5 3 Launcher 1 | . . . . 1 . . . . 5 1 . . . 1 5 . 3 Peak Build Rating 109 | 7 7 17 31 50 43 52 62 65 66 66 71 90 89 101 98 97 109 Average Rating 62 | 5 7 11 23 39 40 48 55 63 64 51 70 82 87 91 97 95 91 On Entrance 54 | . 7 7 17 31 43 42 52 62 64 66 66 69 82 89 98 97 96 Avg Prop Armor Cover (%) 13 | . . . 12 13 10 13 . . . . 11 15 10 14 13 10 12 Naked Turns 28 | . . . . . . . . . . . . . . . . . 28 Heaviest Build 133 | 12 30 38 51 67 67 68 82 86 86 86 87 102 103 130 126 128 133 Greatest Support 123 | 32 40 40 60 90 80 20 92 92 92 92 92 87 54 123 28 96 96 Greatest Overweight (x) 9 | 3 1 1 5 5 6 6 . . . . 2 3 2 4 4 4 9 Average Overweight (x) 1 | . . . 2 1 4 5 . . . . . 2 1 2 4 3 2 Largest Inventory Capacity 20 | 8 15 15 15 15 15 15 15 15 15 15 15 20 20 20 20 20 20 Average Capacity 16 | 7 13 15 15 15 15 15 15 15 15 15 15 19 20 20 20 20 17 Most Carried 20 | 8 9 15 15 15 15 15 15 15 15 15 15 20 20 20 20 20 20 Average Carried 16 | 4 8 13 13 14 14 14 14 14 14 15 14 19 19 19 19 20 17 Final Capacity 20 | 8 15 15 15 15 15 15 15 15 15 15 15 20 20 20 20 20 5 Final Carried 20 | 7 9 15 15 15 15 15 15 15 15 15 13 20 20 20 20 20 5 Class Distribution -------------------- 25% | Scavenger-Tank 23% | Scavenger-Mutant 16% | Mutant 10% | Scavenger-Gunner 6% | Tank 6% | Skirmisher 6% | Scavenger-Skirmisher Dominant Class ---------------- Mutant | -10/Materials Scavenger-Mutant | -9/Materials Mutant | -8/Materials Scavenger-Mutant | -8/Garrison Scavenger-Mutant | -8/Materials Mutant | -7/Factory Tank | -6/Factory Scavenger-Tank | -6/Lower Caves Scavenger-Tank | -6/Lower Caves Scavenger-Mutant | -6/Data Miner Tank | -5/Proximity Caves Scavenger-Gunner | -5/Factory Scavenger-Skirmisher | -4/Factory Scavenger-Tank | -4/Garrison Scavenger-Tank | -4/Factory Scavenger-Tank | -4/Garrison Scavenger-Tank | -3/Research Resources | -11 -10 -9 -8 -8 -8 -7 -6 -6 -6 -6 -5 -5 -4 -4 -4 -4 -3 ----------- Run | Yrd Mat Mat Mat Gar Mat Fac Fac Low Low Dat Pro Fac Fac Gar Fac Gar Res Matter Collected 5581 | 341 158 163 161 867 58 86 90 147 133 . 378 1427 . 749 36 680 107 Remotely . | . . . . . . . . . . . . . . . . . . Salvage Created 7689 | 215 158 163 161 923 135 231 248 225 117 . 618 1998 . 777 . 931 789 Parts 352 | 20 8 17 7 61 7 5 8 11 8 . 21 73 . 23 . 34 49 Haulers Intercepted 3 | . . . . . . . . . . . . 3 . . . . . Recyclers Shooed 3 | . . . . . . 1 1 . . . . . . . . . 1 Parts Field Recycled . | . . . . . . . . . . . . . . . . . . Retrieved Matter . | . . . . . . . . . . . . . . . . . . Parts Self-Destructed 38 | . . . . . . . . 10 11 . 17 . . . . . . Prevented . | . . . . . . . . . . . . . . . . . . Parts Restored . | . . . . . . . . . . . . . . . . . . Kills | -11 -10 -9 -8 -8 -8 -7 -6 -6 -6 -6 -5 -5 -4 -4 -4 -4 -3 ------- Run | Yrd Mat Mat Mat Gar Mat Fac Fac Low Low Dat Pro Fac Fac Gar Fac Gar Res Combat Hostiles Destroyed 164 | . 5 5 6 25 2 5 4 3 11 . 14 30 . 16 . 24 14 Melee 5 | . . . 1 4 . . . . . . . . . . . . . Guns 52 | . 5 5 5 5 . 1 1 . 3 . 1 15 . 7 . 3 1 Cannons 38 | . . . . 5 1 1 2 2 2 . 4 12 . 3 . 2 4 AOE 58 | . . . . 8 . 3 . . 6 . 9 . . 5 . 19 8 Classes Destroyed 20 | 3 2 1 . 7 1 . 2 1 1 . 1 1 . . . . . Worker 13 | 2 . 1 . . . . . . . . . 6 . . . . 4 Builder 7 | . . . . . . . 1 . . . . 2 . . . . 4 Tunneler 8 | 5 1 1 . . . . . . . . . 1 . . . . . Hauler 3 | . . . . . . . . . . . . 3 . . . . . Recycler 2 | 1 . . . . . 1 . . . . . . . . . . . Mechanic 2 | . . . . . 1 . . . . . . 1 . . . . . Watcher 2 | . . . . 1 . . . . . . . 1 . . . . . Swarmer 37 | . 2 3 3 5 . . . . 5 . . 2 . 6 . 10 1 Cutter 2 | . . . . 2 . . . . . . . . . . . . . Saboteur 2 | . . . . 1 . . . . . . . 1 . . . . . Grunt 63 | . 3 1 3 9 . 4 3 . . . 12 7 . 4 . 9 8 Brawler 9 | . . . . 2 . . . . . . . . . 5 . 2 . Duelist 4 | . . . . . . . 1 . . . . 3 . . . . . Sentry 13 | . . 1 . 3 2 . . . . . 1 4 . 1 . . 1 Specialist 2 | . . . . 2 . . . . . . . . . . . . . Hunter 11 | . . . . 1 . 1 . 1 . . . 4 . . . . 4 Programmer 12 | . . . . . . . . . . . 1 9 . . . 2 . Behemoth 3 | . . . . 1 . . . 1 . . . . . . . 1 . Assembled 6 | . . . . . . . . . 6 . . . . . . . . Thug 1 | . . . . . . . . . . . . 1 . . . . . Mutant 1 | . . . . . . . . 1 . . . . . . . . . Best Kill Streak 9 | 4 2 2 3 6 1 5 3 1 6 . 4 8 . 4 . 9 7 Combat Bots Only 9 | . 2 2 3 6 1 4 3 1 6 . 4 3 . 4 . 9 5 Max Kills in Single Turn 7 | 1 2 1 1 2 1 2 1 1 2 . 2 7 . 2 . 5 4 Gunslinging . | . . . . . . . . . . . . . . . . . . Exploded 5 | . . . . 2 . 2 . . 2 . 2 . . 2 . 5 3 Melee 1 | . . . 1 1 . . . . . . . . . . . . . Uniques/NPCs Destroyed . | . . . . . . . . . . . . . . . . . . Combat | -11 -10 -9 -8 -8 -8 -7 -6 -6 -6 -6 -5 -5 -4 -4 -4 -4 -3 -------- Run | Yrd Mat Mat Mat Gar Mat Fac Fac Low Low Dat Pro Fac Fac Gar Fac Gar Res Hostile Shots Fired 1304 | . 37 24 55 194 8 42 19 59 11 . 46 187 . 122 . 68 432 Missed 424 | . 10 9 7 58 2 18 5 12 2 . 13 51 . 40 . 28 169 Hits 880 | . 27 15 48 136 6 24 14 47 9 . 33 136 . 82 . 40 263 Melee 37 | . . . . 5 . . 1 . . . . 4 . 27 . . . Projectile 843 | . 27 15 48 131 6 24 13 47 9 . 33 132 . 55 . 40 263 AOE 2 | . . . . 2 . . . . . . . . . . . . . Critical Strikes 35 | . 1 . 2 4 . 1 2 1 . . 2 6 . 5 . 2 9 Part Disruptions 2 | . . . . . . . . . . . . 2 . . . . . Damage Taken 16187 | . 248 130 667 2640 89 416 283 829 233 . 709 2739 . 2061 . 852 4291 Core 2503 | . 58 30 140 379 . 46 . 71 . . 74 244 . 139 . 12 1310 Absorbed by Shields 118 | . . . . 68 . . . . . . . . . . . 50 . Redirected to Shielding 46 | . . . . . . . . . 29 . 17 . . . . . . Ignored by Resistances 65 | . . . . . . . . . . . . . . 10 . 55 . Regen/Repaired (Parts) 224 | . . . . . 224 . . . . . . . . . . . . Core Remaining (%) 76 | 100 76 92 . . 5 93 . . . . 82 75 . . . 86 . Volleys Fired 583 | 19 31 19 22 99 4 10 12 17 20 . 25 164 10 56 2 47 26 Largest 4 | 2 2 2 2 2 2 2 3 3 2 . 3 3 1 3 1 3 4 Hottest 267 | 60 100 150 138 175 175 175 205 210 120 . 153 204 90 204 33 195 267 Shots Fired 1136 | 37 57 37 40 138 8 14 33 51 29 . 56 332 10 135 4 103 52 Gun 656 | 37 55 33 40 76 4 8 24 27 12 . 19 140 . 97 1 68 15 Cannon 409 | . . . . 40 4 4 9 24 13 . 30 192 10 33 3 21 26 Launcher 65 | . . . . 22 . 2 . . 4 . 7 . . 5 . 14 11 Special 6 | . 2 4 . . . . . . . . . . . . . . . Kinetic 377 | 19 28 4 . 8 . . 12 17 12 . 30 131 . 69 3 22 22 Thermal 677 | 18 29 33 40 91 8 12 21 34 13 . 19 201 10 61 1 67 19 Explosive 65 | . . . . 22 . 2 . . 4 . 7 . . 5 . 14 11 Electromagnetic 17 | . . . . 17 . . . . . . . . . . . . . Robot Hit Streak 31 | 9 11 3 6 11 9 16 7 9 3 . 11 30 . 11 1 31 13 Robot Miss Streak 7 | 2 5 3 2 5 . 2 2 4 6 . 2 4 . 7 . 3 2 Penetration Max 1 | . . . . . . . 1 . . . . 1 . 1 . . . Secondary Targets 3 | . . . . . . . . . . . . . . 3 . . . Max Gunslinging Chain 1 | . . . . . . . . . . . . . . 1 . . . Shots Hit Robots 669 | 24 30 16 26 100 8 11 22 32 7 . 39 178 . 77 1 68 30 Core Hits 378 | 9 10 8 9 52 1 10 12 8 12 . 28 70 . 31 . 64 54 Critical Kills 8 | . . . . 1 1 . . 1 1 . . 4 . . . . . Critical Parts Destroyed 4 | . . . . . . . . . . . 1 1 . 1 . . 1 Critical Strikes 37 | . 3 . 2 8 1 2 2 2 1 . 1 6 . 5 . 3 1 Burn 18 | . 3 . 2 2 . 2 2 1 . . . . . 3 . 3 . Meltdown 6 | . . . . 1 1 . . 1 . . . 3 . . . . . Destroy 5 | . . . . . . . . . 1 . 1 2 . 1 . . . Blast 2 | . . . . . . . . . . . . 1 . 1 . . . Smash 1 | . . . . . . . . . . . . . . . . . 1 Sever 5 | . . . . 5 . . . . . . . . . . . . . Melee Attacks 36 | . . . . 30 . . . . . . . . . . . . 6 Impact 6 | . . . . . . . . . . . . . . . . . 6 Slashing 30 | . . . . 30 . . . . . . . . . . . . . Piercing . | . . . . . . . . . . . . . . . . . . Sneak Attacks . | . . . . . . . . . . . . . . . . . . Combat Hostiles . | . . . . . . . . . . . . . . . . . . Follow-up Attacks . | . . . . . . . . . . . . . . . . . . Damage Inflicted 27107 | 277 390 232 527 2797 202 620 577 932 700 . 2321 6776 14 3023 35 4566 3118 Guns 9177 | 277 390 228 517 1082 72 126 373 325 66 . 295 2401 . 1637 . 1250 138 Cannons 7341 | . . . . 625 130 64 193 607 105 . 697 3335 . 621 35 465 464 Explosions 10220 | . . . . 824 . 430 . . 529 . 1329 1036 . 765 . 2851 2456 Melee 310 | . . . . 250 . . . . . . . . . . . . 60 Ramming 59 | . . 4 10 16 . . 11 . . . . 4 14 . . . . Kinetic 5880 | 124 189 34 . 84 . . 190 197 66 . 582 2518 . 1195 35 465 201 Thermal 11250 | 153 201 194 517 1414 202 190 376 735 105 . 410 3991 . 1063 . 1250 449 Explosive 9353 | . . . . 824 . 397 . . 529 . 1329 263 . 765 . 2851 2395 Electromagnetic 255 | . . . . 209 . 33 . . . . . . . . . . 13 Impact 60 | . . . . . . . . . . . . . . . . . 60 Slashing 250 | . . . . 250 . . . . . . . . . . . . . Piercing . | . . . . . . . . . . . . . . . . . . Highest Corruption 22 | . . . . 1 1 . . 1 1 1 2 10 . 20 20 22 . Average Corruption 6 | . . . . 1 1 . . 1 1 1 1 7 . 18 20 21 . Corruption Purged . | . . . . . . . . . . . . . . . . . . Corruption Blocked . | . . . . . . . . . . . . . . . . . . Effects 236 | . . . . 10 4 . . 8 3 2 14 86 . 45 9 55 . Message Errors 58 | . . . . 4 1 . . 2 1 . 4 18 . 10 3 15 . Matter Fused 53 | . . . . 2 1 . . 1 1 . 3 22 . 12 2 9 . Heat Flow Errors 34 | . . . . . . . . 3 1 . 3 12 . 9 1 5 . Energy Discharges 18 | . . . . 1 . . . 2 . . . 7 . 3 . 5 . Parts Rejected 2 | . . . . . . . . . . . . 2 . . . . . Parts Fused 3 | . . . . . . . . . . . 1 1 . 1 . . . Data Loss (minor) 20 | . . . . . . . . . . 1 1 10 . 5 . 3 . Data Loss (major) 16 | . . . . 2 1 . . . . . . 5 . 2 1 5 . Misfires 8 | . . . . . . . . . . . 2 2 . . 2 2 . Alerts 10 | . . . . 1 1 . . . . 1 . 3 . . . 4 . Misdirections 3 | . . . . . . . . . . . . . . . . 3 . Weapon Failures 11 | . . . . . . . . . . . . 4 . 3 . 4 . Overload Shots . | . . . . . . . . . . . . . . . . . . Overflow Damage 762 | . . . . 7 . . . 11 62 . 56 448 . 19 . 94 65 Projectiles 334 | . . . . . . . . 11 4 . 31 264 . . . 24 . Explosions 368 | . . . . 7 . . . . 58 . 25 184 . 19 . 70 5 Melee 60 | . . . . . . . . . . . . . . . . . 60 Knockbacks 21 | . . . . . . . . . . . 5 12 . . . 1 3 Impact . | . . . . . . . . . . . . . . . . . . Kinetic 18 | . . . . . . . . . . . 5 10 . . . 1 2 Secondary 3 | . . . . . . . . . . . . 2 . . . . 1 Self-Inflicted Damage 374 | . . . . 61 . . . . 114 . 59 42 . 46 . 52 . Shots 11 | . . . . 3 . . . . 3 . 1 1 . 1 . 2 . Rammed 7 | . . 1 2 1 . . 1 . . . . 1 1 . . . . Targets Rammed 9 | . . 1 3 1 1 . 1 . . . . 1 1 . . . . Kicked . | . . . . . . . . . . . . . . . . . . Crushed 2 | . . . 1 . 1 . . . . . . . . . . . . Highest Temperature 507 | . 105 180 237 344 183 156 196 199 142 . 185 276 . 306 162 507 199 Average Temperature 87 | . 34 63 99 72 84 60 108 126 81 . 56 81 . 90 66 134 46 Received Heat Transfer 2970 | . 60 6 378 846 27 150 153 48 . . 262 321 . 180 . 163 376 Effects 4 | . . . . . . . . . . . . 1 . . . 3 . Shutdowns 1 | . . . . . . . . . . . . . . . . 1 . Interference 2 | . . . . . . . . . . . . 1 . . . 1 . Matter Decay 1 | . . . . . . . . . . . . . . . . 1 . Siege Activations . | . . . . . . . . . . . . . . . . . . Martial Activations . | . . . . . . . . . . . . . . . . . . Shielding Activations . | . . . . . . . . . . . . . . . . . . Robots Disrupted . | . . . . . . . . . . . . . . . . . . Combat Hostiles . | . . . . . . . . . . . . . . . . . . Robots Corrupted 1 | . . . . . . . . . . . . . . . . . 1 Combat Hostiles 1 | . . . . . . . . . . . . . . . . . 1 Parts Fried 1 | . . . . . . . . . . . . . . . . . 1 Impact Corruptions 3 | . . . . . . . . . . . . . . . . . 3 Robots Melted 12 | . . . . 3 1 1 1 1 . . . 3 . 1 . 1 . Combat Hostiles 10 | . . . . 3 1 . 1 1 . . . 3 . 1 . . . Parts Melted 44 | . 2 1 3 6 2 1 3 4 . . . 15 . 3 . 4 . Heat Transferred 17591 | 350 814 481 1147 2767 400 650 1000 1170 111 . 444 4126 . 1622 . 2089 420 Parts Sabotaged 2 | . . . . 2 . . . . . . . . . . . . . Parts Stolen . | . . . . . . . . . . . . . . . . . . Parts Stripped . | . . . . . . . . . . . . . . . . . . Power Chain Reactions 1 | . . . . . . . . . . . . . . . . . 1 Alert | -11 -10 -9 -8 -8 -8 -7 -6 -6 -6 -6 -5 -5 -4 -4 -4 -4 -3 ------- Run | Yrd Mat Mat Mat Gar Mat Fac Fac Low Low Dat Pro Fac Fac Gar Fac Gar Res Maximum Alert Level 5 | . . . . 5 3 1 . . . . . 3 2 4 2 4 3 Low Security (%) 24 | 100 100 100 100 14 . 35 100 . . . . 17 . . . . . Level 1 16 | . . . . 23 . 64 . . . . . 24 . 8 . 3 . Level 2 32 | . . . . 24 51 . . . . . . 48 100 62 100 2 51 Level 3 15 | . . . . 18 48 . . . . . . 8 . 14 . 41 48 Level 4 9 | . . . . 18 . . . . . . . . . 13 . 51 . Level 5 . | . . . . 1 . . . . . . . . . . . . . High Security . | . . . . . . . . . . . . . . . . . . Max Security . | . . . . . . . . . . . . . . . . . . Peak Influence 1610 | 10 46 113 70 1610 784 313 116 . . . . 943 473 1124 590 1201 848 Initial 784 | . . 7 38 . 784 269 88 . . . . 35 461 303 590 345 675 Average 504 | 2 14 31 22 655 689 225 79 . . . . 416 453 636 543 1001 715 Influence Increases 7331 | 40 147 270 150 1700 79 175 113 60 110 . 320 1608 42 941 4 1036 536 Destroy 0b10 Robot/C 3395 | . 100 100 120 580 40 100 80 40 100 . 280 600 . 490 . 555 210 Destroy 0b10 Robot/NC 189 | 40 5 10 . 5 5 5 5 . . . . 70 . . . 12 32 Destroy Leader 404 | . 20 30 . 20 20 20 10 20 10 . 40 118 . 24 . 40 32 Allied During Kill 461 | . . . . 22 . . . . . . . . . 202 . 237 . Successful Hack 175 | . 5 22 . 16 14 24 . . . . . 94 . . . . . Disable Machine 561 | . . 15 15 . . 15 . . . . . 450 30 . . 12 24 Anti-Garrison Action 900 | . . . . 900 . . . . . . . . . . . . . Destroy Structure 832 | . 2 3 . 112 . 11 3 . . . . 186 12 141 4 168 190 Lose Combat Pursuer 414 | . 15 90 15 45 . . 15 . . . . 90 . 84 . 12 48 Influence Decreases 6558 | 40 129 197 241 90 1096 586 204 151 110 . 264 722 551 250 634 329 964 Entered New Map 3184 | . . 11 53 . 826 324 94 35 . . . 21 481 130 534 149 526 Time Decay 2605 | 40 129 186 158 . 270 262 100 96 100 . 244 612 70 . 100 . 238 Lost Part 529 | . . . 30 70 . . 10 20 10 . 20 69 . 100 . . 200 Lost Ally 240 | . . . . 20 . . . . . . . 20 . 20 . 180 . Squads Dispatched 22 | . 1 1 . . . . 1 . . . . 15 . . . . 4 Investigation 5 | . . 1 . . . . . . . . . 4 . . . . . Extermination 4 | . . . . . . . . . . . . 4 . . . . . Reinforcement 9 | . 1 . . . . . 1 . . . . 3 . . . . 4 Assault 4 | . . . . . . . . . . . . 4 . . . . . Garrison . | . . . . . . . . . . . . . . . . . . Intercept . | . . . . . . . . . . . . . . . . . . Searches Triggered . | . . . . . . . . . . . . . . . . . . Data Miner Redirects 4 | . . . . . . . . . . . . 4 . . . . . Construction Impeded 1 | . . . . . . . . . . . . . . . . . 1 Haulers Reinforced 4 | . . . . . . . 1 . . . . 1 . . . . 2 Active Scanning Responses . | . . . . . . . . . . . . . . . . . . Cargo Convoy Interrupts . | . . . . . . . . . . . . . . . . . . Stealth | -11 -10 -9 -8 -8 -8 -7 -6 -6 -6 -6 -5 -5 -4 -4 -4 -4 -3 --------- Run | Yrd Mat Mat Mat Gar Mat Fac Fac Low Low Dat Pro Fac Fac Gar Fac Gar Res Distress Signals 9 | . 2 1 . . . . . . . . . 1 . . . . 5 Communications Jammed 3 | . . . . . . . . . . . . 3 . . . . . Distress Signals 2 | . . . . . . . . . . . . 2 . . . . . Times Spotted 249 | . 8 14 8 32 2 6 5 3 10 . 13 51 . 28 . 34 35 Peak Tracking Total 18 | . 4 5 5 6 2 4 3 2 3 . 5 5 . 7 . 12 18 Tactical Retreats 24 | . 1 4 1 2 . . 1 . 2 . . 6 . 3 . 1 3 Traps | -11 -10 -9 -8 -8 -8 -7 -6 -6 -6 -6 -5 -5 -4 -4 -4 -4 -3 ------- Run | Yrd Mat Mat Mat Gar Mat Fac Fac Low Low Dat Pro Fac Fac Gar Fac Gar Res Traps Triggered 23 | . . 1 . 5 . 2 . . . . . 4 . 9 . 2 . Indirectly . | . . . . . . . . . . . . . . . . . . Trap Hack Attempts . | . . . . . . . . . . . . . . . . . . Triggered . | . . . . . . . . . . . . . . . . . . Disarmed 2 | . . . . . . . . . . . . 2 . . . . . Reprogrammed . | . . . . . . . . . . . . . . . . . . Reused . | . . . . . . . . . . . . . . . . . . Traps Extracted . | . . . . . . . . . . . . . . . . . . Installed . | . . . . . . . . . . . . . . . . . . Triggered . | . . . . . . . . . . . . . . . . . . Machines | -11 -10 -9 -8 -8 -8 -7 -6 -6 -6 -6 -5 -5 -4 -4 -4 -4 -3 ---------- Run | Yrd Mat Mat Mat Gar Mat Fac Fac Low Low Dat Pro Fac Fac Gar Fac Gar Res Machines Disabled 42 | . . 1 1 3 . 1 . 1 . . . 30 2 . . 1 2 Max in Single Turn 14 | . . 1 1 2 . 1 . 1 . . . 14 1 . . . 1 Garrison Access 6 | . . . . . 1 . 1 . . . . 3 . . . . 1 Garrison Relay 1 | . . . . 1 . . . . . . . . . . . . . Phase Generator 1 | . . . . 1 . . . . . . . . . . . . . Machines Repaired . | . . . . . . . . . . . . . . . . . . Machines Dismantled . | . . . . . . . . . . . . . . . . . . Machines Sabotaged . | . . . . . . . . . . . . . . . . . . Overloaded Fab Kills . | . . . . . . . . . . . . . . . . . . Hacking | -11 -10 -9 -8 -8 -8 -7 -6 -6 -6 -6 -5 -5 -4 -4 -4 -4 -3 --------- Run | Yrd Mat Mat Mat Gar Mat Fac Fac Low Low Dat Pro Fac Fac Gar Fac Gar Res Machines Accessed 45 | . 2 4 1 2 4 2 1 1 2 4 . 17 1 1 1 . 2 Terminals 20 | . 2 3 . 2 1 2 . . 1 . . 8 . 1 . . . Fabricators 1 | . . . . . . . . . . . . 1 . . . . . Repair Stations 3 | . . . . . 1 . . . . . . 2 . . . . . Recycling Units 2 | . . . . . . . . . . . . 2 . . . . . Scanalyzers 4 | . . 1 . . 1 . . . . . . 1 . . . . 1 Garrison Access 9 | . . . 1 . 1 . 1 . . . . 3 1 . 1 . 1 Total Hacks 114 | . 5 15 1 3 10 3 1 1 2 31 . 36 1 1 1 . 3 Successful 80 | . 1 8 1 1 9 1 1 1 2 31 . 19 1 1 1 . 2 Failed 32 | . 4 6 . 2 1 2 . . . . . 16 . . . . 1 Catastrophic 10 | . . 2 . 1 . 1 . . . . . 6 . . . . . Database Lockouts 2 | . . 1 . . . . . . . . . 1 . . . . . Manual 28 | . 5 6 . . . . . . . . . 17 . . . . . Terminals 45 | . 5 9 . 3 2 3 . . 1 . . 21 . 1 . . . Fabricators 1 | . . . . . . . . . . . . 1 . . . . . Repair Stations 9 | . . . . . 4 . . . . . . 5 . . . . . Recycling Units 2 | . . . . . . . . . . . . 2 . . . . . Scanalyzers 13 | . . 6 . . 3 . . . . . . 2 . . . . 2 Garrison Access 11 | . . . 1 . 1 . 1 . . . . 5 1 . 1 . 1 Terminal Hacks 44 | . . 2 . 1 1 1 . 1 2 31 . 4 . 1 . . . Record 14 | . . . . . . 1 . . 1 11 . 1 . . . . . Part Schematic 11 | . . . . . . . . . . 11 . . . . . . . Robot Schematic 6 | . . . . . . . . . . 6 . . . . . . . Robot Analysis 2 | . . . . . 1 . . . . . . 1 . . . . . Prototype ID Bank 5 | . . 1 . . . . . . . 3 . 1 . . . . . Open Door 2 | . . . . . . . . 1 1 . . . . . . . . Emergency Access Points 1 | . . . . . . . . . . . . . . 1 . . . Locate Traps 1 | . . 1 . . . . . . . . . . . . . . . Disarm Traps 1 | . . . . . . . . . . . . 1 . . . . . Security Stations 1 | . . . . 1 . . . . . . . . . . . . . Fabricator Hacks 1 | . . . . . . . . . . . . 1 . . . . . Build 1 | . . . . . . . . . . . . 1 . . . . . Repair Station Hacks 6 | . . . . . 4 . . . . . . 2 . . . . . Scan Component 4 | . . . . . 2 . . . . . . 2 . . . . . Repair 2 | . . . . . 2 . . . . . . . . . . . . Recycling Unit Hacks 1 | . . . . . . . . . . . . 1 . . . . . Report Inventory 1 | . . . . . . . . . . . . 1 . . . . . Scanalyzer 7 | . . 3 . . 3 . . . . . . . . . . . 1 Retrieve Study 7 | . . 3 . . 3 . . . . . . . . . . . 1 Garrison Access Hacks 10 | . . . 1 . 1 . 1 . . . . 4 1 . 1 . 1 Unlock Access 4 | . . . 1 . . . . . . . . 1 1 . 1 . . Seal Access 6 | . . . . . 1 . 1 . . . . 3 . . . . 1 Unauthorized Hacks 11 | . 1 3 . . . . . . . . . 7 . . . . . Terminals 10 | . 1 3 . . . . . . . . . 6 . . . . . Botnet 10 | . 1 3 . . . . . . . . . 6 . . . . . Fabricators . | . . . . . . . . . . . . . . . . . . Repair Stations . | . . . . . . . . . . . . . . . . . . Recycling Units . | . . . . . . . . . . . . . . . . . . Scanalyzers . | . . . . . . . . . . . . . . . . . . Garrison Access 1 | . . . . . . . . . . . . 1 . . . . . Broadcast 1 | . . . . . . . . . . . . 1 . . . . . Data Cores Recovered . | . . . . . . . . . . . . . . . . . . Used . | . . . . . . . . . . . . . . . . . . Hacking Detections 30 | . 2 3 1 2 2 2 . . 1 . . 14 1 . 1 . 1 Full Trace Events 5 | . 1 . . . . . . . . . . 4 . . . . . Feedback Events . | . . . . . . . . . . . . . . . . . . Feedback Blocked . | . . . . . . . . . . . . . . . . . . Robot Schematics Acquired 6 | . . . . . . . . . . 6 . . . . . . . Robots Built 2 | . . . . . . . . . . . . 2 . . . . . Authchips . | . . . . . . . . . . . . . . . . . . Time 50 | . . . . . . . . . . . . 50 . . . . . Total Robot Build Rating 10 | . . . . . . . . . . . . 10 . . . . . Part Schematics Acquired 11 | . . . . . . . . . . 11 . . . . . . . Parts Built . | . . . . . . . . . . . . . . . . . . Authchips . | . . . . . . . . . . . . . . . . . . Time . | . . . . . . . . . . . . . . . . . . Total Part Build Rating . | . . . . . . . . . . . . . . . . . . Part Studies Acquired 7 | . . 3 . . 3 . . . . . . . . . . . 1 Parts Repaired 2 | . . . . . 2 . . . . . . . . . . . . Time 100 | . . . . . 100 . . . . . . . . . . . . Parts Recycled . | . . . . . . . . . . . . . . . . . . Recycled Matter . | . . . . . . . . . . . . . . . . . . Retrieved Matter . | . . . . . . . . . . . . . . . . . . Retrieved Components . | . . . . . . . . . . . . . . . . . . Parts Scanalyzed . | . . . . . . . . . . . . . . . . . . Part Schematics Acquired . | . . . . . . . . . . . . . . . . . . Parts Damaged . | . . . . . . . . . . . . . . . . . . Bothacking | -11 -10 -9 -8 -8 -8 -7 -6 -6 -6 -6 -5 -5 -4 -4 -4 -4 -3 ------------ Run | Yrd Mat Mat Mat Gar Mat Fac Fac Low Low Dat Pro Fac Fac Gar Fac Gar Res Used RIF Installer 3 | . . . . 1 . . . . . . . . . 1 . 1 . Hotswap 1 | . . . . . . . . . . . . . . . . 1 . Threat Obfuscator 1 | . . . . . . . . . . . . . . 1 . . . Robots Hacked . | . . . . . . . . . . . . . . . . . . Non-combat . | . . . . . . . . . . . . . . . . . . Combat . | . . . . . . . . . . . . . . . . . . Robot Hacks Applied . | . . . . . . . . . . . . . . . . . . Relay Couplers Released 11 | . . . . 5 . . . . . . . 2 . . . 4 . Machine Destruction 7 | . . . . 5 . . . . . . . 2 . . . . . Programmers 4 | . . . . . . . . . . . . . . . . 4 . Fabnet Peak Effective % . | . . . . . . . . . . . . . . . . . . Robots Rewired 13 | . . . . 3 . . . . . . . . . 6 . 4 . Allies Hacked . | . . . . . . . . . . . . . . . . . . Hacks Repelled . | . . . . . . . . . . . . . . . . . . Allies | -11 -10 -9 -8 -8 -8 -7 -6 -6 -6 -6 -5 -5 -4 -4 -4 -4 -3 -------- Run | Yrd Mat Mat Mat Gar Mat Fac Fac Low Low Dat Pro Fac Fac Gar Fac Gar Res Total Allies 15 | . . . . 3 . . . . . . . 2 . 6 . 4 . Largest Group 7 | . . . . 3 . . . . . . . 2 . 6 5 7 . Highest-Rated Group 365 | . . . . 72 . . . . . . . 28 . 294 239 365 . Highest-Rated Ally 56 | . . . . 24 . . . . . . . 14 . 49 49 56 . Total Orders 2 | . . . . 2 . . . . . . . . . . . . . STAY 1 | . . . . 1 . . . . . . . . . . . . . FOLLOW 1 | . . . . 1 . . . . . . . . . . . . . Ally Attacks 135 | . . . . 9 . . . . . . . 3 . 56 . 67 . Total Damage 4379 | . . . . 194 . . . . . . . . . 1827 . 2358 . Kills 30 | . . . . 4 . . . . . . . . . 13 . 13 . Allies Corrupted 1 | . . . . . . . . . . . . . . . . 1 . Allies Melted . | . . . . . . . . . . . . . . . . . . Intel | -11 -10 -9 -8 -8 -8 -7 -6 -6 -6 -6 -5 -5 -4 -4 -4 -4 -3 ------- Run | Yrd Mat Mat Mat Gar Mat Fac Fac Low Low Dat Pro Fac Fac Gar Fac Gar Res Active Infowar (turns) 8767 | 16 409 436 408 . . 519 202 753 751 153 1350 2864 129 391 . . 386 Sensors 2343 | . . . . . . . . . . . . 1825 129 3 . . 386 Seismic 1269 | 16 409 436 408 . . . . . . . . . . . . . . Jamming 5155 | . . . . . . 519 202 753 751 153 1350 1039 . 388 . . . Robot Analysis Total 2 | . . . . . 1 . . . . . . 1 . . . . . Derelict Logs Recovered 4 | . . . . . . . . 1 1 . 2 . . . . . . Drone Launches . | . . . . . . . . . . . . . . . . . . Drone Recoveries . | . . . . . . . . . . . . . . . . . . Exploration | -11 -10 -9 -8 -8 -8 -7 -6 -6 -6 -6 -5 -5 -4 -4 -4 -4 -3 ------------- Run | Yrd Mat Mat Mat Gar Mat Fac Fac Low Low Dat Pro Fac Fac Gar Fac Gar Res Turns Passed 15168 | 183 409 545 434 2996 586 571 202 753 751 153 1350 3359 154 1012 206 999 505 Spaces Moved 8214 | 113 252 357 237 1577 281 321 86 425 429 92 731 1962 82 443 116 421 289 Core 88 | 11 . . . . . . . . . . . . . . . . 77 Treads 3405 | . 56 105 77 1093 76 8 86 425 429 92 651 21 23 97 . 141 25 Legs . | . . . . . . . . . . . . . . . . . . Wheels 4714 | 102 196 252 160 484 205 313 . . . . 80 1941 59 346 116 280 180 Hover . | . . . . . . . . . . . . . . . . . . Flight 7 | . . . . . . . . . . . . . . . . . 7 Fastest Speed 40 | 50 80 85 115 120 145 160 161 161 161 161 130 115 115 115 160 145 40 Average Speed 150 | 90 107 110 139 158 160 163 161 161 161 161 157 139 152 163 160 187 134 Slowest Speed 410 | 200 160 170 163 250 220 290 161 161 161 161 161 410 250 250 160 242 242 Overloaded Moves . | . . . . . . . . . . . . . . . . . . Propulsion Burnouts . | . . . . . . . . . . . . . . . . . . Robots Hopped 3 | . . . . 3 . . . . . . . . . . . . . Potential Cave-ins 11 | . . . . . . . . . . . . 11 . . . . . Cave-ins Triggered . | . . . . . . . . . . . . . . . . . . Exploration Rate (%) 34 | 4 33 32 10 82 23 10 2 47 55 68 85 51 3 47 4 53 17 Regions Visited 17 Branch Regions 4 Pre-discovered Areas 2 | . . . . . . . . . . 1 1 . . . . . . Known Exits Taken 5 | . . 1 1 . . . . . . . . 1 1 . 1 . . Unknown Exits Taken 9 | 1 1 . . . 1 1 1 1 1 1 1 . . . . . . Scrap Searched 9 | . . . . . . . . 1 4 . 4 . . . . . . Spaces Dug 118 | . 1 1 . 39 . . . . 32 . . 33 3 . 2 5 2 Terrain Destroyed 791 | . 2 1 . 186 . 12 4 11 57 . 87 114 8 69 2 136 102 Melee . | . . . . . . . . . . . . . . . . . . Projectile 171 | . 2 1 . 5 . 2 4 11 13 . 8 89 8 9 2 7 10 AOE 620 | . . . . 181 . 10 . . 44 . 79 25 . 60 . 129 92 Terrain Rammed 1 | . . . . 1 . . . . . . . . . . . . . Walls Destroyed . | . . . . . . . . . . . . . . . . . . Machines Disabled . | . . . . . . . . . . . . . . . . . . Actions | -11 -10 -9 -8 -8 -8 -7 -6 -6 -6 -6 -5 -5 -4 -4 -4 -4 -3 --------- Run | Yrd Mat Mat Mat Gar Mat Fac Fac Low Low Dat Pro Fac Fac Gar Fac Gar Res Total 10024 | 153 324 463 296 1874 411 355 122 457 461 97 882 2355 98 642 134 550 350 Wait 471 | . 12 33 11 26 104 14 18 . 5 . 112 99 . 9 9 11 8 Move 8194 | 112 251 356 237 1570 280 320 85 424 428 91 730 1961 82 442 116 420 289 Hop 3 | . . . . 3 . . . . . . . . . . . . . Pick Up 132 | 9 6 15 5 17 6 2 3 4 3 . 2 35 1 18 1 2 3 Fast Attach 46 | 7 . 1 1 6 1 1 1 1 . 3 . 9 . 7 1 3 4 Attach 59 | . . 5 5 8 1 2 2 2 1 . 3 8 1 9 2 . 10 Detach 7 | . . 1 . . 1 1 . . . . 1 2 . 1 . . . Swap 166 | 2 19 20 8 30 5 3 . 5 1 . 6 31 2 8 1 22 3 Drop 140 | 4 5 12 4 23 8 2 . 4 3 3 3 37 1 15 2 13 1 Fire 583 | 19 31 19 22 99 4 10 12 17 20 . 25 164 10 56 2 47 26 Melee 36 | . . . . 30 . . . . . . . . . . . . 6 Ram 1 | . . . . 1 . . . . . . . . . . . . . Kick . | . . . . . . . . . . . . . . . . . . Crush 9 | . . 1 3 1 1 . 1 . . . . 1 1 . . . . Escape Stasis 53 | . . . . 12 . . . . . . . 8 . 24 . 9 . Rewire 124 | . . . . 48 . . . . . . . . . 53 . 23 . Trap . | . . . . . . . . . . . . . . . . . . Miscellaneous . | . . . . . . . . . . . . . . . . . . Route ------- -11/Scrapyard -10/Materials -9/Materials -8/Materials -8/Garrison (discovered 4 exits: *Mat x4) -8/Materials -7/Factory (discovered 2 exits: *Fac x2) -6/Factory -6/Lower Caves -6/Lower Caves -6/Data Miner -5/Proximity Caves -5/Factory (discovered 2 exits: *Fac / *Upp) -4/Factory -4/Garrison -4/Factory -4/Garrison (discovered 2 exits: *Res x2) -3/Research History --------- Turn | Location | Event 24 | -11/Scrapyard | Discovered new exit (range 16) 184 | -11/Scrapyard | Entered Materials 314 | -10/Materials | Build established: Mutant 448 | -10/Materials | Discovered new exit (range 16) 593 | -10/Materials | Entered another Materials area 593 | -9/Materials | Evolved 2 slots: Utility x2 793 | -9/Materials | Central database locked down 1091 | -9/Materials | Discovered new exit (range 10) 1136 | -9/Materials | Identified exit to Materials 1138 | -9/Materials | Entered another Materials area 1138 | -8/Materials | Evolved 2 slots: Propulsion x1, Utility x1 1352 | -8/Materials | Lost 3 parts (1p1n1w) 1572 | -8/Materials | Identified exit to Garrison 1572 | -8/Materials | Entered Garrison 1770 | -8/Garrison | Triggered checkpoint 1869 | -8/Garrison | Discovered new exit (range 13) 1976 | -8/Garrison | Triggered checkpoint 2344 | -8/Garrison | Phase Generator disabled 2344 | -8/Garrison | Spotted B-75 Beast 2378 | -8/Garrison | Build established: Scavenger-Mutant 2396 | -8/Garrison | Core integrity fell below 50% 2468 | -8/Garrison | Core integrity fell below 20% 2488 | -8/Garrison | Destroyed B-75 Beast 2503 | -8/Garrison | Lost 7 parts (2p1n2u2w) 2644 | -8/Garrison | Discovered new exit (range 11) 2797 | -8/Garrison | Discovered new exit (range 14) 3458 | -8/Garrison | Learned Materials security intel 3474 | -8/Garrison | Triggered checkpoint 3750 | -8/Garrison | Triggered checkpoint 3816 | -8/Garrison | Triggered checkpoint 3856 | -8/Garrison | Discovered new exit (range 3) 4104 | -8/Garrison | Triggered checkpoint 4248 | -8/Garrison | Installed Relay Interface Framework 4524 | -8/Garrison | Garrison Relay disabled 4568 | -8/Garrison | Entered Materials 4966 | -8/Materials | Repaired Imp. Medium Treads 5017 | -8/Materials | Repaired Imp. Medium Treads 5121 | -8/Materials | Discovered new exit (range 16) 5154 | -8/Materials | Entered Factory 5154 | -7/Factory | Evolved 2 slots: Propulsion x1, Utility x1 5324 | -7/Factory | Build established: Mutant 5656 | -7/Factory | Discovered new exit (range 15) 5719 | -7/Factory | Discovered new exit (range 12) 5725 | -7/Factory | Entered another Factory area 5725 | -6/Factory | Evolved 2 slots: Power x1, Weapon x1 5887 | -6/Factory | Discovered new exit (range 15) 5927 | -6/Factory | Entered Lower Caves 5971 | -6/Lower Caves | Attacked by a delusional Derelict stockpiling parts 6037 | -6/Lower Caves | Learned 4 Factory zone layouts 6217 | -6/Lower Caves | Build established: Scavenger-Tank 6278 | -6/Lower Caves | Spotted B-75 Beast 6343 | -6/Lower Caves | Destroyed B-75 Beast 6456 | -6/Lower Caves | Discovered new exit (range 14) 6680 | -6/Lower Caves | Entered another Lower Caves area 6821 | -6/Lower Caves | Learned Factory terminal intel 7135 | -6/Lower Caves | Encountered an infested base 7415 | -6/Lower Caves | Discovered new exit (range 10) 7431 | -6/Lower Caves | Entered Data Miner 7433 | -6/Data Miner | Discovered new exit (range 6) 7464 | -6/Data Miner | Met Data Miner 7494 | -6/Data Miner | Learned location of Section 7 (-2) 7494 | -6/Data Miner | Acquired the access code to Warlord's prototype stash 7520 | -6/Data Miner | Received God Mode back door access code from Data Miner 7584 | -6/Data Miner | Entered Proximity Caves 7591 | -5/Proximity Caves | Learned Factory garrison access intel 7945 | -5/Proximity Caves | Received a Behemoth hack from an annoying Tinkerer 8224 | -5/Proximity Caves | Build established: Tank 8450 | -5/Proximity Caves | Learned location of Armory (-4) 8689 | -5/Proximity Caves | Attracted the attention of an 0b10 checkpoint 8852 | -5/Proximity Caves | Discovered new exit (range 15) 8934 | -5/Proximity Caves | Entered Factory 8934 | -5/Factory | Evolved 2 slots: Propulsion x1, Utility x1 8936 | -5/Factory | Loaded intel: 26 terminal locations 8937 | -5/Factory | Loaded intel: 4 garrison access locations 9575 | -5/Factory | Build established: Scavenger-Gunner 9618 | -5/Factory | Incoming investigation squad redirected 9863 | -5/Factory | Incoming investigation squad redirected 10252 | -5/Factory | Build established: Scavenger-Skirmisher 10427 | -5/Factory | Identified exit to Garrison 10734 | -5/Factory | First assault squad dispatched 10756 | -5/Factory | Incoming assault squad redirected 10765 | -5/Factory | System corruption reached 10% 10893 | -5/Factory | Fabricated E-15 Imp (x2) 11036 | -5/Factory | Discovered new exit (range 16) 11060 | -5/Factory | Identified exit to Upper Caves 11227 | -5/Factory | Build established: Skirmisher 11416 | -5/Factory | Central database locked down 11980 | -5/Factory | Allied Derelicts emerged from ambush trap array 12034 | -5/Factory | Lost 3 allies 12158 | -5/Factory | Discovered new exit (range 16) 12201 | -5/Factory | Identified exit to Factory 12272 | -5/Factory | Incoming assault squad redirected 12293 | -5/Factory | Entered another Factory area 12293 | -4/Factory | Evolved 2 slots: Propulsion x1, Utility x1 12447 | -4/Factory | Identified exit to Garrison 12447 | -4/Factory | Entered Garrison 12508 | -4/Garrison | System corruption reached 10% 12543 | -4/Garrison | Lost 6 parts (1p1n3u1w) 12804 | -4/Garrison | Build established: Scavenger-Tank 12879 | -4/Garrison | Triggered checkpoint 12897 | -4/Garrison | Triggered checkpoint 12972 | -4/Garrison | Expanded RIF knowledge: Threat Obfuscation 13061 | -4/Garrison | Triggered checkpoint 13188 | -4/Garrison | Spotted B-86 Titan 13188 | -4/Garrison | Triggered checkpoint 13211 | -4/Garrison | Allies destroyed B-86 Titan 13238 | -4/Garrison | Found Hvy. Reflective Plating 13247 | -4/Garrison | Triggered checkpoint 13411 | -4/Garrison | Discovered new exit (range 10) 13448 | -4/Garrison | Identified exit to Factory 13459 | -4/Garrison | Entered Factory 13459 | -4/Factory | Accompanied by 5 allies 13468 | -4/Factory | Build established: Scavenger-Gunner 13656 | -4/Factory | Identified exit to Garrison 13665 | -4/Factory | Entered Garrison 13665 | -4/Garrison | Accompanied by 5 allies 13695 | -4/Garrison | Triggered checkpoint 13752 | -4/Garrison | Destroyed 9 combat bots 13866 | -4/Garrison | Build established: Scavenger-Tank 13963 | -4/Garrison | Expanded RIF knowledge: Hotswap 14095 | -4/Garrison | Spotted B-86 Titan 14106 | -4/Garrison | Triggered checkpoint 14108 | -4/Garrison | Triggered checkpoint 14113 | -4/Garrison | Triggered checkpoint 14116 | -4/Garrison | Destroyed B-86 Titan 14142 | -4/Garrison | Destroyed 8 combat bots 14161 | -4/Garrison | Lost 7 allies 14477 | -4/Garrison | Discovered new exit (range 15) 14634 | -4/Garrison | Discovered new exit (range 13) 14651 | -4/Garrison | Identified exit to Research 14664 | -4/Garrison | Entered Research 14664 | -3/Research | Evolved 2 slots: Utility x1, Weapon x1 15101 | -3/Research | Released all parts (10) 15117 | -3/Research | Core integrity fell below 50% 15131 | -3/Research | Lost 18 parts (7n4u7w) 15144 | -3/Research | Core integrity fell below 20% 15169 | -3/Research | Destroyed by S-43 Plague with Heavy Machine Gun Last Messages --------------- 15109_ Destroyed Unknown Flight Unit. 15109_ S-43 Plague system corrupted by crushing effect. 15110_ S-43 Plague system terminally corrupted. 15110_ Unknown Flight Unit fried. 15116_ Slug penetrates Vacuum Chamber. 15119_ Chain reaction triggered in Corrupted Rnf. Fission Core. 15121_ U-05 Engineer lays Concrete. 15122_ Penetrated by Slug. 15122_ Critical hit (Burn: +50). 15130_ Acquired Impulse Thruster. 15137_ Slug penetrates Wall. 15138_ Shock Maul destroyed. 15140_ Impulse Thruster destroyed. 15144_ Slug penetrates Wall. 15152_ S-43 Plague suffers critical hit (Burn). 15158_ O-16 Technician: "IFF HANDSHAKE FAILED. SECURING TERMINAL." 15165_ Acquired Adv. Heavy Treads. 15169_ ALERT: Hostiles spotted, dispatching reinforcements to Terminal R008. 15169_ Acquired Adv. Heavy Treads. Map ----- +----------------------------------------------------+ | ?????????????????????????????????????????????????? | | ?????????????????????????????????????????????????? | | ?????????????????????????????????????????????????? | | ?????????????????????????????????????????????????? | | ?????????????????????????????????????????????????? | | ?????????????????????????????????????????????????? | | ?????????????????????????????????????????????????? | | ?????????????????????????????????????????????????? | | ?????????????????????????????????????????????????? | | ?????????????????????????????????????????????????? | | ?????????????????????????????????????????????????? | | ?????????????????????????????????????????????????? | | ?????????????????????????????????????????????????? | | ?????????????????????????????????????????????????? | | ?????????????????????????????????????????????????? | | ?????????????????????????????????????????????????? | | ?????????????????????????????????????????????????? | | ?????????????????????????????????????????????????? | | ?????????????????????????????????????????????????? | | ?????????????????????????????????????????????????? | | ?????????????????????????????????????????????????? | | ?????????????????# ???########???????????????????? | | ?????????????????# ???# #???????????????????? | | ?????????????????# ??# ] #???????????????????? | | ?????????????????+ ??#! #???????????????????? | | ?????????????????# ?# @ ! #???????????????????? | | ?????????????????# ?# #???????????????????? | | ?????????????????# ?# #???????????????????? | | ?????????????????# # #???????????????????? | | ?????????????????# # s[ #???????????????????? | | ?????????????????# ###s#############??????????? | | ?????????????????+ !????????? | | ?????????????????# ????????? | | ?????????????????# ????????? | | ?????????????????# ????????? | | ?????????????????######## ????????? | | ??????????????????# ! # ????????? | | ??????????????????#! # """ ????????? | | ????############### # """ ??????????? | | ????# ## ! + """ ???????????? | | ????# ## # ??????????? | | ????# " ## # ?????????? | | ????# """ T ##= !#### = ?????????? | | ????# """ " ## #??? """ ""??????????? | | ????# """ ####/###### """ "???????????? | | ????# """ # """ "???????????? | | ????# """ / ?????????????? | | ????# """ # ?????????????? | | ????# """ + ??????????????? | | ????# ######### ####"" "??????????????? | +----------------------------------------------------+ Best States ------------- Heat Dissipation 113 Coolant Potential 80 Energy Generation 34 Energy Capacity 520 Matter Stores 300 Matter Capacity 300 Sight Range 16 Robot Scan Range 16 Terrain Scan Density 10 Jamming Range 14 Armor Coverage 825 Resistance: TH 25 Core Shielding 30 Propulsion Shielding 33 Weapon Cycling 30 Evasion (%) 62 Targeting Accuracy 8 Launcher Accuracy 40 Recoil Reduction 5 Offensive Hacking 10 Item Schematics ----------------- Combat Drone Bay | -6/Data Miner | Free Lgt. Regenerative Plating | -6/Data Miner | Free Enh. Flexi-carbon Leg | -6/Data Miner | Free Hvy. Proton Missile Launcher | -6/Data Miner | Free Prc. Energy Filter | -6/Data Miner | Free Myomer Leg | -6/Data Miner | Free Adv. Particle Charger | -6/Data Miner | Free Hardcell Cannon | -6/Data Miner | Free Imp. Plasma Cutter | -6/Data Miner | Free Adv. Datajack | -6/Data Miner | Free Hvy. Gauss Cannon | -6/Data Miner | Free Robot Schematics ------------------ S-27 Virus | -6/Data Miner | Free G-50 Soldier | -6/Data Miner | Free M-22 Extractor | -6/Data Miner | Free A-15 Conveyor | -6/Data Miner | Free G-67 Veteran | -6/Data Miner | Free R-10 Processor | -6/Data Miner | Free Fabricated ------------ E-15 Imp | x2 | -5/Factory | Preloaded Repaired ---------- Imp. Medium Treads | 38% | -8/Materials Imp. Medium Treads | 49% | -8/Materials Studied --------- Wheel | -9/Materials | Hacked Lgt. Treads | -9/Materials | Hacked Ion Engine | -9/Materials | Hacked Arm. Treads | -8/Materials | Hacked Blade Saw | -8/Materials | Hacked Grenade Launcher | -8/Materials | Hacked Enh. Nova Cannon | -3/Research | Hacked Alien Tech Used ----------------- None Achievements -------------- My Command Is Your Wish Challenges ------------ None Game ------ Seed DisassembledRingPick Manual? 0 Play Time 02:01:40 Cumulative 108.7 hours Start 2025.12.10 @ 21:43:47 End 2025.12.11 @ 09:58:14 Sessions 3 Manual Loads 0 Difficulty Rogue Special Mode None Game No. 113 Rogue 113 Adventurer 0 Explorer 0 Win Type - Total 0 Types 0/0/0/0/0/0/0/0/0/0 Lore% 62 Gallery% 48 Achievement% 39 Wizard Run 0 Options --------- Layout 0 ASCII 0 Keyboard 1 Movement Vi Keybinds 0 Fullscreen 2 Font 18/SmallcapsGlow Map View 76x50 Zoom Use 0% Tactical HUD 1 Map Filters NONE Filters NONE Steam 1 RUN: 1955376a-6074-441d-a1d7-dd31a47fbf69